[Event "*** Titled Tuesday Blitz"]
[Site "Chess.com"]
[Date "2020.04.28"]
[Round "1"]
[White "StephenDedalus83"]
[Black "ErikRonka"]
[Result "1-0"]
[WhiteElo "2803"]
[BlackElo "2423"]
[TimeControl "180+1"]
[EndTime "10:08:42 PDT"]
[Termination "StephenDedalus83 won by resignation"]

1. e4 {[%clk 0:03:00.9]} 1... c6 {[%clk 0:02:59.2]} 2. d4 {[%clk 0:03:00.3]}
2... d5 {[%clk 0:03:00.1]} 3. Nd2 {[%clk 0:03:00.6]} 3... dxe4 {[%clk
0:02:59.4]} 4. Nxe4 {[%clk 0:03:01.5]} 4... Bf5 {[%clk 0:02:59.8]} 5. Ng3 {[%clk
0:03:01]} 5... Bg6 {[%clk 0:03:00.4]} 6. N1e2 {[%clk 0:03:01.6]} 6... e6 {[%clk
0:02:59.7]} 7. Nf4 {[%clk 0:03:00.7]} 7... Bd6 {[%clk 0:02:59.5]} 8. c3 {[%clk
0:02:54.7]} 8... Nf6 {[%clk 0:02:33]} 9. h4 {[%clk 0:02:51.4]} 9... Qc7 {[%clk
0:02:32.8]} 10. Qf3 {[%clk 0:02:51]} 10... Nbd7 {[%clk 0:02:30.9]} 11. Bd2
{[%clk 0:02:43.9]} 11... e5 {[%clk 0:02:22.3]} 12. Nxg6 {[%clk 0:02:40.7]} 12...
hxg6 {[%clk 0:02:21.8]} 13. Ne4 {[%clk 0:02:16.8]} 13... exd4 {[%clk 0:02:09.7]}
14. cxd4 {[%clk 0:02:16.3]} 14... Nxe4 {[%clk 0:01:26.3]} 15. Qxe4+ {[%clk
0:02:16.3]} 15... Kf8 {[%clk 0:01:26.5]} 16. O-O-O {[%clk 0:02:16.1]} 16... Nf6
{[%clk 0:01:19.1]} 17. Qf3 {[%clk 0:02:15.9]} 17... Qb6 {[%clk 0:01:07.3]} 18.
Be3 {[%clk 0:01:47.4]} 18... Qa5 {[%clk 0:00:57]} 19. Bc4 {[%clk 0:01:44.2]}
19... Qf5 {[%clk 0:00:49.2]} 20. Qxf5 {[%clk 0:01:33.4]} 20... gxf5 {[%clk
0:00:49.2]} 21. f3 {[%clk 0:01:33]} 21... Re8 {[%clk 0:00:48.5]} 22. Bf2 {[%clk
0:01:31.7]} 22... Bf4+ {[%clk 0:00:46.2]} 23. Kc2 {[%clk 0:01:31]} 23... Be3
{[%clk 0:00:46.8]} 24. Be1 {[%clk 0:01:28.9]} 24... Rd8 {[%clk 0:00:44.8]} 25.
Bc3 {[%clk 0:01:20.8]} 25... Nd5 {[%clk 0:00:44.5]} 26. Bxd5 {[%clk 0:01:16.7]}
26... Rxd5 {[%clk 0:00:45.4]} 27. Kd3 {[%clk 0:01:17.4]} 27... Bf2 {[%clk
0:00:39.3]} 28. h5 {[%clk 0:01:11.7]} 28... Ke7 {[%clk 0:00:29.3]} 29. Ke2
{[%clk 0:01:10.4]} 29... Bg3 {[%clk 0:00:29]} 30. Rh3 {[%clk 0:00:55.4]} 30...
Bd6 {[%clk 0:00:28.4]} 31. g4 {[%clk 0:00:53]} 31... Kf6 {[%clk 0:00:27.2]} 32.
Rg1 {[%clk 0:00:52]} 32... Re8+ {[%clk 0:00:26.1]} 33. Kd3 {[%clk 0:00:51.5]}
33... f4 {[%clk 0:00:24.8]} 34. h6 {[%clk 0:00:48.3]} 34... Re3+ {[%clk
0:00:18.3]} 35. Kc2 {[%clk 0:00:48.3]} 35... gxh6 {[%clk 0:00:19.2]} 36. Rxh6+
{[%clk 0:00:48.2]} 36... Ke7 {[%clk 0:00:19.8]} 37. Rh3 {[%clk 0:00:47]} 37...
c5 {[%clk 0:00:19.5]} 38. dxc5 {[%clk 0:00:46.4]} 38... Bxc5 {[%clk 0:00:20.4]}
39. Rgh1 {[%clk 0:00:45.2]} 39... Re2+ {[%clk 0:00:19.6]} 40. Kb3 {[%clk
0:00:45.2]} 40... Rd3 {[%clk 0:00:19.5]} 41. Rh5 {[%clk 0:00:44.2]} 41... Rxf3
{[%clk 0:00:18.2]} 42. Rxc5 {[%clk 0:00:43.7]} 42... Rg3 {[%clk 0:00:16]} 43.
Rc7+ {[%clk 0:00:43.4]} 43... Kd6 {[%clk 0:00:15.9]} 44. Rxf7 {[%clk 0:00:43.1]}
44... f3 {[%clk 0:00:16.3]} 45. Rh6+ {[%clk 0:00:42.6]} 45... Kd5 {[%clk
0:00:15.2]} 46. Rhf6 {[%clk 0:00:42.4]} 46... Re3 {[%clk 0:00:11.8]} 47. g5
{[%clk 0:00:41.5]} 47... Rxg5 {[%clk 0:00:11.4]} 48. Rxf3 {[%clk 0:00:41]} 48...
Rxf3 {[%clk 0:00:12.3]} 49. Rxf3 {[%clk 0:00:41.1]} 49... a6 {[%clk 0:00:12.6]}
50. Rf7 {[%clk 0:00:39.7]} 50... Kc6 {[%clk 0:00:12.5]} 51. Rf6+ {[%clk
0:00:36.4]} 51... Kc7 {[%clk 0:00:10.8]} 52. a4 {[%clk 0:00:36.4]} 52... b6
{[%clk 0:00:09.5]} 53. Bd4 {[%clk 0:00:35.2]} 53... b5 {[%clk 0:00:09.3]} 54. a5
{[%clk 0:00:35.2]} 54... Rg3+ {[%clk 0:00:09.3]} 55. Kb4 {[%clk 0:00:33.9]}
55... Rg4 {[%clk 0:00:10.2]} 56. Kc5 {[%clk 0:00:33.3]} 56... Rg5+ {[%clk
0:00:10.4]} 57. Kb4 {[%clk 0:00:33]} 57... Rg4 {[%clk 0:00:11.3]} 58. Kc3 {[%clk
0:00:30.8]} 58... Rg3+ {[%clk 0:00:11.2]} 59. Kd2 {[%clk 0:00:30.8]} 59... Rg4
{[%clk 0:00:12.1]} 60. Kd3 {[%clk 0:00:30.2]} 60... Kb7 {[%clk 0:00:13]} 61.
Rb6+ {[%clk 0:00:28.5]} 61... Kc7 {[%clk 0:00:13.5]} 62. Rxa6 {[%clk 0:00:28.7]}
62... Rg3+ {[%clk 0:00:13.9]} 63. Ke4 {[%clk 0:00:28.1]} 63... Rb3 {[%clk
0:00:13.3]} 64. Rb6 {[%clk 0:00:26.8]} 64... b4 {[%clk 0:00:12]} 65. Kd5 {[%clk
0:00:26.8]} 65... Rh3 {[%clk 0:00:10.9]} 66. Rxb4 {[%clk 0:00:26.6]} 66... Rh4
{[%clk 0:00:10.1]} 67. Be5+ {[%clk 0:00:26.6]} 1-0

[Event "*** Titled Tuesday Blitz"]
[Site "Chess.com"]
[Date "2020.04.28"]
[Round "1"]
[White "Mischuk_D"]
[Black "slowdgehammer"]
[Result "0-1"]
[WhiteElo "2659"]
[BlackElo "2357"]
[TimeControl "180+1"]
[EndTime "10:08:46 PDT"]
[Termination "slowdgehammer won by checkmate"]

1. e4 {[%clk 0:03:00.9]} 1... c5 {[%clk 0:02:59.1]} 2. Nf3 {[%clk 0:03:01]} 2...
e6 {[%clk 0:02:57.4]} 3. d4 {[%clk 0:03:00.7]} 3... cxd4 {[%clk 0:02:58.2]} 4.
Nxd4 {[%clk 0:03:00.8]} 4... Nf6 {[%clk 0:02:58.1]} 5. Nc3 {[%clk 0:03:00.2]}
5... Nc6 {[%clk 0:02:57.2]} 6. Ndb5 {[%clk 0:02:58.2]} 6... Bc5 {[%clk
0:02:56.6]} 7. Bf4 {[%clk 0:02:55.2]} 7... O-O {[%clk 0:02:56.6]} 8. Bd6 {[%clk
0:02:54.9]} 8... Qb6 {[%clk 0:02:55.8]} 9. Bxc5 {[%clk 0:02:52.4]} 9... Qxc5
{[%clk 0:02:56.7]} 10. Qd6 {[%clk 0:02:52.5]} 10... Qb6 {[%clk 0:02:57.4]} 11.
Qc7 {[%clk 0:01:55.2]} 11... Qc5 {[%clk 0:02:52.4]} 12. Qd6 {[%clk 0:01:55.4]}
12... Qb6 {[%clk 0:02:51.8]} 13. Be2 {[%clk 0:01:12.2]} 13... a6 {[%clk
0:02:49.1]} 14. Qc7 {[%clk 0:01:12.5]} 14... Qc5 {[%clk 0:02:44.5]} 15. Qd6
{[%clk 0:00:58.1]} 15... Qb6 {[%clk 0:02:43.7]} 16. Nc7 {[%clk 0:00:37.4]} 16...
Qxb2 {[%clk 0:02:20.8]} 17. O-O {[%clk 0:00:36.8]} 17... Ne8 {[%clk 0:02:20.5]}
18. Nxa8 {[%clk 0:00:31.4]} 18... Nxd6 {[%clk 0:02:18.9]} 19. Na4 {[%clk
0:00:28.1]} 19... Qxc2 {[%clk 0:02:15.3]} 20. Bd1 {[%clk 0:00:27.3]} 20... Qxe4
{[%clk 0:02:12.4]} 21. N8b6 {[%clk 0:00:26.4]} 21... Nd4 {[%clk 0:02:00.3]} 22.
Rc1 {[%clk 0:00:22]} 22... Nc6 {[%clk 0:01:06]} 23. Bf3 {[%clk 0:00:20.4]} 23...
Qb4 {[%clk 0:01:01.7]} 24. Rfd1 {[%clk 0:00:20.5]} 24... Nf5 {[%clk 0:00:59]}
25. Rb1 {[%clk 0:00:20.4]} 25... Qe7 {[%clk 0:00:56.6]} 26. Nc3 {[%clk
0:00:19.9]} 26... d5 {[%clk 0:00:56.1]} 27. Re1 {[%clk 0:00:19.9]} 27... Qf6
{[%clk 0:00:46.6]} 28. Nca4 {[%clk 0:00:19.7]} 28... Nfd4 {[%clk 0:00:45.3]} 29.
Bd1 {[%clk 0:00:20]} 29... g6 {[%clk 0:00:44.1]} 30. Nc5 {[%clk 0:00:19.7]}
30... Qe7 {[%clk 0:00:34.7]} 31. Nd3 {[%clk 0:00:19.2]} 31... Qd6 {[%clk
0:00:32.7]} 32. Ba4 {[%clk 0:00:18.2]} 32... Nf5 {[%clk 0:00:29.5]} 33. Rec1
{[%clk 0:00:17.5]} 33... Nfe7 {[%clk 0:00:29.1]} 34. Nc5 {[%clk 0:00:17.2]}
34... Ne5 {[%clk 0:00:26.9]} 35. Bd1 {[%clk 0:00:13.7]} 35... Nc4 {[%clk
0:00:26.6]} 36. Nxc4 {[%clk 0:00:02.6]} 36... Qxc5 {[%clk 0:00:26.6]} 37. Ne5
{[%clk 0:00:02.1]} 37... Qa5 {[%clk 0:00:22]} 38. Nf3 {[%clk 0:00:03]} 38... Nc6
{[%clk 0:00:18]} 39. Bb3 {[%clk 0:00:03.5]} 39... Bd7 {[%clk 0:00:17.5]} 40. h3
{[%clk 0:00:03.8]} 40... Qc7 {[%clk 0:00:17.3]} 41. Nd2 {[%clk 0:00:03.2]} 41...
Qd6 {[%clk 0:00:17]} 42. Nf3 {[%clk 0:00:03.6]} 42... b5 {[%clk 0:00:17.2]} 43.
Rd1 {[%clk 0:00:04]} 43... Na5 {[%clk 0:00:17.1]} 44. Rbc1 {[%clk 0:00:04.7]}
44... Nc4 {[%clk 0:00:17.4]} 45. Nd4 {[%clk 0:00:04.3]} 45... Qb6 {[%clk
0:00:15.4]} 46. Nf3 {[%clk 0:00:04.6]} 46... Rc8 {[%clk 0:00:13.5]} 47. Nd4
{[%clk 0:00:04.9]} 47... Na5 {[%clk 0:00:12.6]} 48. Rb1 {[%clk 0:00:05.1]} 48...
Nxb3 {[%clk 0:00:11.9]} 49. axb3 {[%clk 0:00:06]} 49... Rc3 {[%clk 0:00:11]} 50.
Nf3 {[%clk 0:00:06.9]} 50... Rxf3 {[%clk 0:00:10.8]} 51. gxf3 {[%clk 0:00:06.9]}
51... Bc6 {[%clk 0:00:10.8]} 52. Kg2 {[%clk 0:00:07.8]} 52... d4 {[%clk
0:00:10.9]} 53. Rd3 {[%clk 0:00:07.7]} 53... e5 {[%clk 0:00:11.1]} 54. Re1
{[%clk 0:00:08.1]} 54... Qc5 {[%clk 0:00:10.3]} 55. Kg3 {[%clk 0:00:08.3]} 55...
f5 {[%clk 0:00:10.3]} 56. f4 {[%clk 0:00:08.1]} 56... e4 {[%clk 0:00:10.5]} 57.
Rdd1 {[%clk 0:00:07.6]} 57... d3 {[%clk 0:00:10.8]} 58. Rc1 {[%clk 0:00:08.5]}
58... Qd6 {[%clk 0:00:10.7]} 59. Red1 {[%clk 0:00:08.9]} 59... Bd5 {[%clk
0:00:11.1]} 60. Rc3 {[%clk 0:00:08.8]} 60... g5 {[%clk 0:00:11.5]} 61. Kg2
{[%clk 0:00:08.8]} 61... Qxf4 {[%clk 0:00:11.4]} 62. Kg1 {[%clk 0:00:09.7]}
62... Kg7 {[%clk 0:00:09.4]} 63. Rc8 {[%clk 0:00:10.6]} 63... Kg6 {[%clk
0:00:09.6]} 64. Rd8 {[%clk 0:00:11]} 64... Be6 {[%clk 0:00:09.3]} 65. Re8 {[%clk
0:00:10.7]} 65... Kf7 {[%clk 0:00:08.7]} 66. Ra8 {[%clk 0:00:10.5]} 66... e3
{[%clk 0:00:08.7]} 67. Rxd3 {[%clk 0:00:07.5]} 67... Qxf2+ {[%clk 0:00:07.3]}
68. Kh1 {[%clk 0:00:07.4]} 68... Qf1+ {[%clk 0:00:07.3]} 69. Kh2 {[%clk
0:00:07.4]} 69... Qxd3 {[%clk 0:00:08]} 70. Ra7+ {[%clk 0:00:08.3]} 70... Kf6
{[%clk 0:00:08.4]} 71. Rd7 {[%clk 0:00:08.7]} 71... Qxd7 {[%clk 0:00:07.6]} 72.
h4 {[%clk 0:00:09]} 72... gxh4 {[%clk 0:00:06.9]} 73. Kg2 {[%clk 0:00:09]} 73...
Qd2+ {[%clk 0:00:07.8]} 74. Kf3 {[%clk 0:00:09.3]} 74... Qf2# {[%clk 0:00:08.2]}
0-1

[Event "*** Titled Tuesday Blitz"]
[Site "Chess.com"]
[Date "2020.04.28"]
[Round "1"]
[White "Artem_Koval"]
[Black "VerdeNotte"]
[Result "0-1"]
[WhiteElo "2425"]
[BlackElo "2806"]
[TimeControl "180+1"]
[EndTime "10:08:48 PDT"]
[Termination "VerdeNotte won on time"]

1. e4 {[%clk 0:03:00.7]} 1... e5 {[%clk 0:02:59.4]} 2. d4 {[%clk 0:02:59.7]}
2... exd4 {[%clk 0:02:59.1]} 3. Bc4 {[%clk 0:03:00]} 3... Nf6 {[%clk 0:02:55.8]}
4. Nf3 {[%clk 0:02:59.6]} 4... Bc5 {[%clk 0:02:43.8]} 5. O-O {[%clk 0:02:57]}
5... d6 {[%clk 0:02:31.6]} 6. Nxd4 {[%clk 0:02:53.8]} 6... O-O {[%clk
0:02:30.3]} 7. Bg5 {[%clk 0:02:48.4]} 7... h6 {[%clk 0:02:27.4]} 8. Bh4 {[%clk
0:02:48.4]} 8... g5 {[%clk 0:02:25]} 9. Bg3 {[%clk 0:02:47.2]} 9... Nxe4 {[%clk
0:02:25.3]} 10. Nc3 {[%clk 0:02:12.1]} 10... Nxg3 {[%clk 0:02:15]} 11. hxg3
{[%clk 0:02:08.4]} 11... Nc6 {[%clk 0:02:11.7]} 12. Nxc6 {[%clk 0:02:00.5]}
12... bxc6 {[%clk 0:02:12.6]} 13. Qh5 {[%clk 0:01:58.1]} 13... d5 {[%clk
0:02:03.2]} 14. Qxh6 {[%clk 0:01:26.9]} 14... dxc4 {[%clk 0:01:43.3]} 15. Ne4
{[%clk 0:01:26.9]} 15... Bd4 {[%clk 0:01:38.4]} 16. Rad1 {[%clk 0:01:18.5]}
16... Bg7 {[%clk 0:01:22.4]} 17. Qh5 {[%clk 0:01:07.1]} 17... Qe7 {[%clk
0:01:06.7]} 18. Rfe1 {[%clk 0:01:03.9]} 18... Bf5 {[%clk 0:00:52.5]} 19. Nxg5
{[%clk 0:00:51.6]} 19... Bg6 {[%clk 0:00:50]} 20. Qh4 {[%clk 0:00:33.8]} 20...
Qf6 {[%clk 0:00:45.4]} 21. Rd7 {[%clk 0:00:20.3]} 21... Rfe8 {[%clk 0:00:37]}
22. Red1 {[%clk 0:00:18.8]} 22... Rad8 {[%clk 0:00:31.2]} 23. f4 {[%clk
0:00:18.8]} 23... Bf5 {[%clk 0:00:19.8]} 24. Rxd8 {[%clk 0:00:14]} 24... Rxd8
{[%clk 0:00:20.7]} 25. Re1 {[%clk 0:00:12.5]} 25... Bh6 {[%clk 0:00:20.3]} 26.
Re2 {[%clk 0:00:07.6]} 26... Bxg5 {[%clk 0:00:19]} 27. fxg5 {[%clk 0:00:08.5]}
27... Qd4+ {[%clk 0:00:19.2]} 28. Kh2 {[%clk 0:00:07.1]} 28... Qxh4+ {[%clk
0:00:18.7]} 29. gxh4 {[%clk 0:00:08]} 29... Rd4 {[%clk 0:00:18.3]} 30. g3 {[%clk
0:00:05.8]} 30... Re4 {[%clk 0:00:16.7]} 31. Rd2 {[%clk 0:00:05.6]} 31... Bg4
{[%clk 0:00:17]} 32. Kg2 {[%clk 0:00:03.9]} 32... c3 {[%clk 0:00:14.5]} 33. bxc3
{[%clk 0:00:03.3]} 33... Re3 {[%clk 0:00:15.1]} 34. c4 {[%clk 0:00:02.4]} 34...
Rc3 {[%clk 0:00:15]} 35. Kf2 {[%clk 0:00:01.9]} 35... Rxc4 {[%clk 0:00:15.3]}
36. Ke3 {[%clk 0:00:01.3]} 36... c5 {[%clk 0:00:15.6]} 37. Kd3 {[%clk
0:00:01.1]} 37... Rd4+ {[%clk 0:00:15.6]} 38. Kc3 {[%clk 0:00:02]} 38... Rxd2
{[%clk 0:00:14.8]} 39. Kxd2 {[%clk 0:00:02.9]} 39... Kg7 {[%clk 0:00:15]} 40. c3
{[%clk 0:00:03.6]} 40... Kg6 {[%clk 0:00:15.2]} 41. Ke3 {[%clk 0:00:04.5]} 41...
Be6 {[%clk 0:00:15.3]} 42. a3 {[%clk 0:00:05.4]} 42... Kf5 {[%clk 0:00:14.6]}
43. Kf3 {[%clk 0:00:05.6]} 43... Bd5+ {[%clk 0:00:15]} 44. Ke3 {[%clk
0:00:05.9]} 44... Kg4 {[%clk 0:00:15.5]} 45. c4 {[%clk 0:00:03.5]} 45... Bxc4
{[%clk 0:00:15.4]} 46. Ke4 {[%clk 0:00:04.4]} 46... Be6 {[%clk 0:00:14.3]} 47.
Ke5 {[%clk 0:00:04.4]} 47... c4 {[%clk 0:00:14.2]} 48. Kd4 {[%clk 0:00:04.5]}
48... c5+ {[%clk 0:00:12.8]} 49. Kc3 {[%clk 0:00:04.2]} 49... Bd5 {[%clk
0:00:12.8]} 50. a4 {[%clk 0:00:04.2]} 50... a5 {[%clk 0:00:12.6]} 51. Kd2 {[%clk
0:00:03.8]} 51... Bf3 {[%clk 0:00:11.5]} 52. Kc3 {[%clk 0:00:04]} 52... Be2
{[%clk 0:00:10.6]} 53. Kd2 {[%clk 0:00:04]} 53... Bd3 {[%clk 0:00:07.8]} 54. Kc3
{[%clk 0:00:04.1]} 54... Bf1 {[%clk 0:00:06.6]} 55. Kd2 {[%clk 0:00:04]} 55...
Kxg3 {[%clk 0:00:05.9]} 56. h5 {[%clk 0:00:03.8]} 56... Bd3 {[%clk 0:00:05.5]}
57. g6 {[%clk 0:00:02.4]} 57... Bxg6 {[%clk 0:00:05.4]} 58. h6 {[%clk
0:00:02.8]} 58... Bh7 {[%clk 0:00:04.6]} 59. Kc3 {[%clk 0:00:03.7]} 59... f5
{[%clk 0:00:05.3]} 60. Kxc4 {[%clk 0:00:03.7]} 60... f4 {[%clk 0:00:06.2]} 61.
Kxc5 {[%clk 0:00:04]} 61... f3 {[%clk 0:00:07.1]} 62. Kb5 {[%clk 0:00:04.9]}
62... f2 {[%clk 0:00:08]} 63. Kxa5 {[%clk 0:00:05.6]} 63... f1=Q {[%clk
0:00:08.9]} 64. Kb6 {[%clk 0:00:06.5]} 64... Qf6+ {[%clk 0:00:09.1]} 65. Kb5
{[%clk 0:00:05.9]} 65... Qxh6 {[%clk 0:00:10]} 66. a5 {[%clk 0:00:05.8]} 66...
Bd3+ {[%clk 0:00:10.6]} 67. Kb4 {[%clk 0:00:05]} 67... Qf4+ {[%clk 0:00:10.7]}
68. Kc5 {[%clk 0:00:03.5]} 68... Qc4+ {[%clk 0:00:10.6]} 69. Kb6 {[%clk
0:00:02.1]} 69... Qa6+ {[%clk 0:00:11.5]} 0-1

[Event "*** Titled Tuesday Blitz"]
[Site "Chess.com"]
[Date "2020.04.28"]
[Round "1"]
[White "MilanovicDan"]
[Black "MaximDlugy"]
[Result "1/2-1/2"]
[WhiteElo "2462"]
[BlackElo "2902"]
[TimeControl "180+1"]
[EndTime "10:08:50 PDT"]
[Termination "Game drawn - insufficient material"]

1. d4 {[%clk 0:02:59.8]} 1... d5 {[%clk 0:02:59.7]} 2. c4 {[%clk 0:02:58.9]}
2... dxc4 {[%clk 0:03:00]} 3. Nf3 {[%clk 0:02:57.8]} 3... a6 {[%clk 0:03:00.2]}
4. a4 {[%clk 0:02:56.7]} 4... Nc6 {[%clk 0:03:00.4]} 5. e3 {[%clk 0:02:55.3]}
5... Be6 {[%clk 0:03:00.3]} 6. Be2 {[%clk 0:02:41.5]} 6... Nf6 {[%clk
0:02:53.2]} 7. O-O {[%clk 0:02:41]} 7... h6 {[%clk 0:02:52.7]} 8. Qc2 {[%clk
0:02:35.4]} 8... Na5 {[%clk 0:02:44]} 9. Nbd2 {[%clk 0:02:32.4]} 9... Rc8 {[%clk
0:02:23.7]} 10. Nxc4 {[%clk 0:02:28.1]} 10... Nxc4 {[%clk 0:02:22.3]} 11. Bxc4
{[%clk 0:02:27.5]} 11... Bxc4 {[%clk 0:02:23.2]} 12. Qxc4 {[%clk 0:02:27.2]}
12... e6 {[%clk 0:02:19.9]} 13. b4 {[%clk 0:02:18.7]} 13... Qd5 {[%clk
0:02:18.1]} 14. Qc3 {[%clk 0:02:11.5]} 14... Ne4 {[%clk 0:02:14.3]} 15. Qb2
{[%clk 0:02:11.3]} 15... Bd6 {[%clk 0:02:10.7]} 16. Rb1 {[%clk 0:01:32.9]} 16...
O-O {[%clk 0:02:05.6]} 17. Qc2 {[%clk 0:01:32.8]} 17... c6 {[%clk 0:01:55.3]}
18. a5 {[%clk 0:01:28.5]} 18... f5 {[%clk 0:01:49.5]} 19. Ne1 {[%clk 0:01:18]}
19... e5 {[%clk 0:01:42]} 20. f3 {[%clk 0:01:13.5]} 20... Nf6 {[%clk 0:01:33.6]}
21. Qxf5 {[%clk 0:01:07.4]} 21... exd4 {[%clk 0:01:32.5]} 22. Qd3 {[%clk
0:00:52.1]} 22... dxe3 {[%clk 0:01:29.1]} 23. Bxe3 {[%clk 0:00:49.1]} 23... Rfe8
{[%clk 0:01:24.1]} 24. Bf2 {[%clk 0:00:37.4]} 24... Rcd8 {[%clk 0:01:05.1]} 25.
Qxd5+ {[%clk 0:00:37.3]} 25... Nxd5 {[%clk 0:01:05.3]} 26. Nd3 {[%clk
0:00:37.6]} 26... Nc3 {[%clk 0:01:01.4]} 27. Rb3 {[%clk 0:00:37.4]} 27... Ne2+
{[%clk 0:00:48.4]} 28. Kh1 {[%clk 0:00:36.9]} 28... Nf4 {[%clk 0:00:40.4]} 29.
Nc5 {[%clk 0:00:34.8]} 29... Bxc5 {[%clk 0:00:38.2]} 30. bxc5 {[%clk 0:00:34.6]}
30... Rd7 {[%clk 0:00:35.9]} 31. Bg3 {[%clk 0:00:34.7]} 31... Ne6 {[%clk
0:00:27.1]} 32. Bd6 {[%clk 0:00:32.4]} 32... Nd4 {[%clk 0:00:27.5]} 33. Rd3
{[%clk 0:00:25.1]} 33... Nb5 {[%clk 0:00:28.4]} 34. Kg1 {[%clk 0:00:21.7]} 34...
Red8 {[%clk 0:00:28.9]} 35. Rfd1 {[%clk 0:00:21.3]} 35... Kf7 {[%clk 0:00:28.4]}
36. Kf2 {[%clk 0:00:21]} 36... Nxd6 {[%clk 0:00:28.9]} 37. cxd6 {[%clk
0:00:20.9]} 37... Ke6 {[%clk 0:00:29.1]} 38. Re3+ {[%clk 0:00:21.2]} 38... Kf6
{[%clk 0:00:29.3]} 39. Red3 {[%clk 0:00:21.6]} 39... c5 {[%clk 0:00:29.5]} 40.
Ke3 {[%clk 0:00:17.7]} 40... Rc8 {[%clk 0:00:27.5]} 41. Ke4 {[%clk 0:00:15.6]}
41... Ke6 {[%clk 0:00:25.9]} 42. Rd5 {[%clk 0:00:15]} 42... Rc6 {[%clk
0:00:25.6]} 43. Re5+ {[%clk 0:00:15.2]} 43... Kf6 {[%clk 0:00:26]} 44. Rf5+
{[%clk 0:00:15.5]} 44... Kg6 {[%clk 0:00:24.8]} 45. Rfd5 {[%clk 0:00:15.7]}
45... Kf6 {[%clk 0:00:24.4]} 46. Rf5+ {[%clk 0:00:15.6]} 46... Kg6 {[%clk
0:00:24.7]} 47. Rfd5 {[%clk 0:00:15.6]} 47... c4 {[%clk 0:00:25.3]} 48. Ke5
{[%clk 0:00:15.6]} 48... Kf7 {[%clk 0:00:24.9]} 49. Rc1 {[%clk 0:00:15.3]} 49...
c3 {[%clk 0:00:25.4]} 50. Rc2 {[%clk 0:00:14.9]} 50... g6 {[%clk 0:00:23.5]} 51.
f4 {[%clk 0:00:15]} 51... Rc8 {[%clk 0:00:22]} 52. g4 {[%clk 0:00:14.6]} 52...
Re8+ {[%clk 0:00:21.2]} 53. Kd4 {[%clk 0:00:15]} 53... Re6 {[%clk 0:00:21.2]}
54. Rxc3 {[%clk 0:00:15.1]} 54... Rexd6 {[%clk 0:00:21.8]} 55. Rxd6 {[%clk
0:00:15.5]} 55... Rxd6+ {[%clk 0:00:22.7]} 56. Ke5 {[%clk 0:00:15.8]} 56... Re6+
{[%clk 0:00:23.2]} 57. Kd5 {[%clk 0:00:16.1]} 57... Re7 {[%clk 0:00:23.7]} 58.
h4 {[%clk 0:00:14.5]} 58... h5 {[%clk 0:00:23.5]} 59. gxh5 {[%clk 0:00:14.1]}
59... gxh5 {[%clk 0:00:24.1]} 60. Rg3 {[%clk 0:00:14.7]} 60... Re3 {[%clk
0:00:21.3]} 61. Rg5 {[%clk 0:00:14.6]} 61... Rb3 {[%clk 0:00:20.7]} 62. Kd6
{[%clk 0:00:13.5]} 62... Rb4 {[%clk 0:00:19.5]} 63. Rxh5 {[%clk 0:00:13.3]}
63... Kg6 {[%clk 0:00:19.8]} 64. Rg5+ {[%clk 0:00:11.3]} 64... Kf6 {[%clk
0:00:20.3]} 65. Rh5 {[%clk 0:00:09.3]} 65... Rxf4 {[%clk 0:00:19.9]} 66. Kc7
{[%clk 0:00:09.1]} 66... Rb4 {[%clk 0:00:20.1]} 67. Rh6+ {[%clk 0:00:08.6]}
67... Kg7 {[%clk 0:00:20]} 68. Rb6 {[%clk 0:00:08.6]} 68... Ra4 {[%clk
0:00:20.5]} 69. h5 {[%clk 0:00:08]} 69... Rxa5 {[%clk 0:00:20.2]} 70. h6+ {[%clk
0:00:08.4]} 70... Kh7 {[%clk 0:00:20.4]} 71. Kxb7 {[%clk 0:00:08.7]} 71... Rb5
{[%clk 0:00:18.3]} 72. Kxa6 {[%clk 0:00:07.6]} 72... Rxb6+ {[%clk 0:00:18.6]}
73. Kxb6 {[%clk 0:00:07.8]} 73... Kxh6 {[%clk 0:00:19.5]} 1/2-1/2